[Event "44th Chess Olympiad Women 2022"]
[Site "Chennai"]
[Date "2022.08.07"]
[Round "9.48"]
[White "Rouda Essa, Alserkal"]
[Black "Hwass Zeineb"]
[Result "1-0"]
[WhiteElo "1874"]
[BlackElo "1386"]
[Annotator "NA RC"]
[PlyCount "117"]
[EventDate "2022.??.??"]
[TimeControl "60"]

1. e4 {[%emt 0:00:01]} c5 {[%emt 0:00:07]} 2. Nf3 {[%emt 0:00:04]} d6 {[%emt 0:
00:00]} 3. d4 {[%emt 0:00:04]} cxd4 {[%emt 0:00:06]} 4. Nxd4 {[%emt 0:00:04]}
Nf6 {[%emt 0:00:18]} 5. Nc3 {[%emt 0:00:04]} Nc6 {[%emt 0:01:07]} 6. Bg5 {
[%emt 0:00:09]} e5 {[%emt 0:01:21]} 7. Ndb5 {[%emt 0:00:12]} a6 {[%emt 0:02:21]
} 8. Na3 {[%emt 0:00:05]} b5 {[%emt 0:02:28]} 9. Nd5 {[%emt 0:00:31]} Be7 {
[%emt 0:03:22]} 10. Bxf6 {[%emt 0:00:21]} Bxf6 {[%emt 0:00:13]} 11. c3 {
[%emt 0:00:06]} Bb7 {[%emt 0:05:10]} 12. Nc2 {[%emt 0:01:20]} Bg5 {[%emt 0:00:
00]} 13. a4 {[%emt 0:06:12]} bxa4 {[%emt 0:05:48]} 14. Rxa4 {[%emt 0:00:08]}
O-O {[%emt 0:02:55]} 15. Bc4 {[%emt 0:04:19]} a5 {[%emt 0:11:50]} 16. O-O {
[%emt 0:00:59]} Ne7 {[%emt 0:04:06]} 17. Re1 {[%emt 0:15:58]} Nc8 {[%emt 0:00:
00]} 18. Qd3 {[%emt 0:15:12]} Nb6 {[%emt 0:02:07]} 19. Nxb6 {[%emt 0:00:16]}
Qxb6 {[%emt 0:00:06]} 20. b4 {[%emt 0:01:08]} axb4 {[%emt 0:01:53]} 21. Rxb4 {
[%emt 0:00:14]} Qc7 {[%emt 0:00:40]} 22. Rd1 {[%emt 0:12:37]} Rfd8 {[%emt 0:00:
00]} 23. Ne3 {[%emt 0:07:34]} Bxe3 {[%emt 0:03:46]} 24. Qxe3 {[%emt 0:01:16]}
Ba6 {[%emt 0:20:53]} 25. Bd5 {[%emt 0:01:00]} Rab8 {[%emt 0:00:10]} 26. Ra4 {
[%emt 0:00:43]} Bb7 {[%emt 0:03:38]} 27. Ra7 {[%emt 0:07:08]} Qc8 {[%emt 0:00:
00]} 28. Qd3 {[%emt 0:02:26]} Bxd5 {[%emt 0:03:36]} 29. Qxd5 {[%emt 0:00:05]}
Rd7 {[%emt 0:00:30]} 30. Ra3 {[%emt 0:01:35]} Qc7 {[%emt 0:02:08]} 31. h3 {
[%emt 0:01:59]} h6 {[%emt 0:00:41]} 32. c4 {[%emt 0:00:50]} Rc8 {[%emt 0:01:19]
} 33. Rc3 {[%emt 0:04:01]} Qc5 {[%emt 0:00:53]} 34. Qd2 {[%emt 0:00:12]} Qc6 {
[%emt 0:01:37]} 35. Qe2 {[%emt 0:01:03]} Qb6 {[%emt 0:02:13]} 36. Rg3 {[%emt 0:
00:00]} Qd8 {[%emt 0:02:34]} 37. Qg4 {[%emt 0:00:58]} g6 {[%emt 0:00:08]} 38.
f4 {[%emt 0:05:57]} exf4 {[%emt 0:02:16]} 39. Qxf4 {[%emt 0:00:09]} Kh7 {
[%emt 0:01:21]} 40. Rc3 {[%emt 0:04:25]} Qe7 {[%emt 0:02:01]} 41. Rd4 {[%emt 0:
00:00]} Rc5 {[%emt 0:05:27]} 42. Rcd3 {[%emt 0:00:00]} Re5 {[%emt 0:05:11]} 43.
Rf3 {[%emt 0:00:00]} Kg7 {[%emt 0:03:50]} 44. Rb3 {[%emt 0:00:00]} Rc7 {
[%emt 0:07:18]} 45. Rb6 {[%emt 0:00:00]} Rd7 {[%emt 0:02:10]} 46. Qf3 {[%emt 0:
00:00]} Re6 {[%emt 0:00:57]} 47. Qd3 {[%emt 0:00:00]} Re5 {[%emt 0:04:34]} 48.
Rc6 {[%emt 0:00:00]} Re6 {[%emt 0:02:57]} 49. c5 {[%emt 0:00:00]} d5 {[%emt 0:
00:00]} 50. exd5 {[%emt 0:06:56]} Rxc6 {[%emt 0:01:10]} 51. dxc6 {[%emt 0:00:
00]} Qe1+ {[%emt 0:01:06]} 52. Qf1 {[%emt 0:00:22]} Qe3+ {[%emt 0:00:40]} 53.
Qf2 {[%emt 0:00:21]} Qc1+ {[%emt 0:01:27]} 54. Kh2 {[%emt 0:00:12]} Rc7 {
[%emt 0:00:23]} 55. Rd7 {[%emt 0:00:49]} Rxd7 {[%emt 0:00:51]} 56. cxd7 {
[%emt 0:00:01]} Qd1 {[%emt 0:00:14]} 57. c6 {[%emt 0:00:05]} Qd6+ {[%emt 0:00:
00]} 58. Qg3 {[%emt 0:00:05]} Qf8 {[%emt 0:01:25]} 59. c7 {[%emt 0:00:05]} 1-0

[Event "44th Chess Olympiad Women 2022"]
[Site "Chennai"]
[Date "2022.08.07"]
[Round "9.49"]
[White "Cho, Hung-Ling"]
[Black "Bwalya Mulwale, Lubuuto"]
[Result "0-1"]
[WhiteElo "1576"]
[BlackElo "1751"]
[Annotator "NA"]
[PlyCount "84"]
[EventDate "2022.??.??"]
[TimeControl "60"]

1. c4 {[%emt 0:00:05]} e5 {[%emt 0:00:07]} 2. g3 {[%emt 0:00:05]} Nf6 {[%emt 0:
00:00]} 3. Bg2 {[%emt 0:00:05]} d5 {[%emt 0:01:30]} 4. cxd5 {[%emt 0:04:19]}
Nxd5 {[%emt 0:00:23]} 5. Nc3 {[%emt 0:01:48]} Nb6 {[%emt 0:03:17]} 6. Nf3 {
[%emt 0:02:49]} Nc6 {[%emt 0:00:33]} 7. d3 {[%emt 0:05:17]} Be7 {[%emt 0:02:07]
} 8. a3 {[%emt 0:03:35]} O-O {[%emt 0:00:41]} 9. O-O {[%emt 0:02:33]} Be6 {
[%emt 0:02:58]} 10. b4 {[%emt 0:09:00]} f6 {[%emt 0:05:30]} 11. Bb2 {[%emt 0:
00:00]} Rb8 {[%emt 0:02:57]} 12. Rc1 {[%emt 0:01:37]} Qd7 {[%emt 0:13:20]} 13.
Ne4 {[%emt 0:08:18]} Rfc8 {[%emt 0:05:15]} 14. Nc5 {[%emt 0:08:11]} Bxc5 {
[%emt 0:00:45]} 15. Rxc5 {[%emt 0:00:16]} Ne7 {[%emt 0:02:48]} 16. Qc2 {
[%emt 0:13:21]} Na4 {[%emt 0:02:00]} 17. Ra5 {[%emt 0:05:10]} Nxb2 {[%emt 0:00:
00]} 18. Qxb2 {[%emt 0:00:12]} a6 {[%emt 0:04:20]} 19. Rc5 {[%emt 0:00:46]} b6
{[%emt 0:00:59]} 20. Rc2 {[%emt 0:01:00]} c5 {[%emt 0:02:41]} 21. Rfc1 {
[%emt 0:09:19]} Nd5 {[%emt 0:02:27]} 22. Nd2 {[%emt 0:05:45]} cxb4 {[%emt 0:00:
00]} 23. Bxd5 {[%emt 0:07:15]} Qxd5 {[%emt 0:03:57]} 24. Qxb4 {[%emt 0:00:41]}
Rxc2 {[%emt 0:02:30]} 25. Rxc2 {[%emt 0:00:02]} a5 {[%emt 0:05:59]} 26. Qe7 {
[%emt 0:03:03]} Bh3 {[%emt 0:00:28]} 27. e4 {[%emt 0:01:54]} Qd8 {[%emt 0:00:
00]} 28. Qxd8+ {[%emt 0:00:30]} Rxd8 {[%emt 0:00:01]} 29. Rc3 {[%emt 0:00:24]}
b5 {[%emt 0:00:09]} 30. Rb3 {[%emt 0:00:41]} Be6 {[%emt 0:02:03]} 31. Rxb5 {
[%emt 0:00:29]} Rxd3 {[%emt 0:00:33]} 32. Nf1 {[%emt 0:00:30]} Bh3 {[%emt 0:00:
00]} 33. Rb1 {[%emt 0:00:17]} Rxa3 {[%emt 0:01:29]} 34. Ne3 {[%emt 0:00:41]}
Ra4 {[%emt 0:01:47]} 35. f3 {[%emt 0:00:34]} Ra3 {[%emt 0:01:23]} 36. Kf2 {
[%emt 0:00:29]} Ra2+ {[%emt 0:00:37]} 37. Kg1 {[%emt 0:00:10]} h5 {[%emt 0:00:
00]} 38. Nc4 {[%emt 0:00:49]} a4 {[%emt 0:00:39]} 39. Ne3 {[%emt 0:00:03]} a3 {
[%emt 0:01:41]} 40. Nd5 {[%emt 0:00:54]} Rg2+ {[%emt 0:04:18]} 41. Kh1 {
[%emt 0:30:03]} Rf2 {[%emt 0:31:14]} 42. f4 {[%emt 0:00:00]} a2 {[%emt 0:00:00]
} 0-1

[Event "44th Chess Olympiad Women 2022"]
[Site "Chennai"]
[Date "2022.08.07"]
[Round "9.49"]
[White "Mwango, Lorita"]
[Black "Tsai, Sophie Yi-Hsuan"]
[Result "1-0"]
[WhiteElo "1920"]
[BlackElo "1131"]
[Annotator "NA RC"]
[PlyCount "133"]
[EventDate "2022.??.??"]
[TimeControl "60"]

1. c4 {[%emt 0:00:12]} f5 {[%emt 0:00:04]} 2. Nc3 {[%emt 0:00:07]} Nf6 {
[%emt 0:00:06]} 3. g3 {[%emt 0:00:10]} e6 {[%emt 0:00:17]} 4. Bg2 {[%emt 0:00:
00]} Be7 {[%emt 0:00:43]} 5. Qb3 {[%emt 0:00:19]} c6 {[%emt 0:00:28]} 6. e3 {
[%emt 0:01:01]} d5 {[%emt 0:01:40]} 7. d4 {[%emt 0:00:25]} Nbd7 {[%emt 0:01:20]
} 8. cxd5 {[%emt 0:00:30]} exd5 {[%emt 0:00:29]} 9. Nf3 {[%emt 0:00:37]} Ne4 {
[%emt 0:03:02]} 10. a3 {[%emt 0:03:14]} O-O {[%emt 0:01:46]} 11. O-O {[%emt 0:
00:00]} Kh8 {[%emt 0:01:26]} 12. Qc2 {[%emt 0:05:48]} Qe8 {[%emt 0:02:19]} 13.
b4 {[%emt 0:05:49]} Ndf6 {[%emt 0:01:10]} 14. Ne5 {[%emt 0:01:28]} Nxc3 {
[%emt 0:38:45]} 15. Qxc3 {[%emt 0:00:32]} Ne4 {[%emt 0:00:29]} 16. Qc2 {
[%emt 0:04:21]} Qh5 {[%emt 0:01:58]} 17. f3 {[%emt 0:07:53]} Ng5 {[%emt 0:00:
00]} 18. f4 {[%emt 0:17:26]} Ne4 {[%emt 0:00:40]} 19. Bf3 {[%emt 0:00:48]} Qh6
{[%emt 0:03:06]} 20. Rb1 {[%emt 0:00:30]} g5 {[%emt 0:06:12]} 21. Rb2 {[%emt 0:
00:00]} gxf4 {[%emt 0:01:32]} 22. exf4 {[%emt 0:00:45]} Qf6 {[%emt 0:01:36]}
23. Qd3 {[%emt 0:09:29]} a6 {[%emt 0:02:29]} 24. Rg2 {[%emt 0:00:14]} Bd6 {
[%emt 0:04:04]} 25. Be2 {[%emt 0:09:59]} a5 {[%emt 0:01:27]} 26. bxa5 {[%emt 0:
00:00]} Rxa5 {[%emt 0:00:14]} 27. Bb2 {[%emt 0:00:29]} Qe7 {[%emt 0:03:25]} 28.
Rf3 {[%emt 0:02:49]} Be6 {[%emt 0:00:27]} 29. Bd1 {[%emt 0:00:20]} Bf7 {
[%emt 0:01:36]} 30. Re3 {[%emt 0:01:04]} Rg8 {[%emt 0:01:35]} 31. a4 {[%emt 0:
00:00]} h6 {[%emt 0:01:14]} 32. h3 {[%emt 0:04:08]} Kh7 {[%emt 0:00:56]} 33. g4
{[%emt 0:00:32]} Be6 {[%emt 0:00:45]} 34. Qe2 {[%emt 0:01:54]} Bxe5 {[%emt 0:
00:00]} 35. fxe5 {[%emt 0:01:56]} Kh8 {[%emt 0:08:42]} 36. gxf5 {[%emt 0:02:27]
} Rxg2+ {[%emt 0:00:18]} 37. Qxg2 {[%emt 0:00:23]} Bxf5 {[%emt 0:00:12]} 38.
Kh2 {[%emt 0:01:23]} Qh4 {[%emt 0:02:25]} 39. Rf3 {[%emt 0:00:56]} Be6 {
[%emt 0:01:20]} 40. Rf8+ {[%emt 0:01:18]} Kh7 {[%emt 0:00:13]} 41. Bc2 {
[%emt 0:32:01]} Ra7 {[%emt 0:32:09]} 42. Rf6 {[%emt 0:00:00]} Kh8 {[%emt 0:00:
00]} 43. Bxe4 {[%emt 0:00:00]} dxe4 {[%emt 0:00:00]} 44. Rxe6 {[%emt 0:00:00]}
Qf4+ {[%emt 0:00:00]} 45. Kh1 {[%emt 0:00:00]} Ra8 {[%emt 0:00:00]} 46. Rf6 {
[%emt 0:00:00]} Qe3 {[%emt 0:00:00]} 47. Qf2 {[%emt 0:00:00]} Qxh3+ {[%emt 0:
00:00]} 48. Qh2 {[%emt 0:00:00]} Qxh2+ {[%emt 0:00:00]} 49. Kxh2 {[%emt 0:00:
00]} Rxa4 {[%emt 0:00:00]} 50. Rxh6+ {[%emt 0:00:00]} Kg7 {[%emt 0:00:00]} 51.
Rh3 {[%emt 0:00:00]} Ra2 {[%emt 0:00:00]} 52. Rb3 {[%emt 0:00:00]} e3 {[%emt 0:
00:00]} 53. Kg3 {[%emt 0:00:00]} b5 {[%emt 0:00:00]} 54. Kf3 {[%emt 0:00:00]}
Kf7 {[%emt 0:00:00]} 55. Kxe3 {[%emt 0:00:00]} Ke6 {[%emt 0:00:00]} 56. Ke4 {
[%emt 0:00:00]} Ra8 {[%emt 0:00:00]} 57. Rc3 {[%emt 0:00:00]} Rc8 {[%emt 0:00:
00]} 58. Ba3 {[%emt 0:00:00]} Kd7 {[%emt 0:00:00]} 59. Bc5 {[%emt 0:00:00]} Ke6
{[%emt 0:00:00]} 60. Rf3 {[%emt 0:00:00]} Rh8 {[%emt 0:00:00]} 61. Rf6+ {
[%emt 0:00:00]} Kd7 {[%emt 0:00:00]} 62. e6+ {[%emt 0:00:00]} Ke8 {[%emt 0:00:
00]} 63. e7 {[%emt 0:00:00]} Rh4+ {[%emt 0:00:44]} 64. Rf4 {[%emt 0:00:00]}
Rxf4+ {[%emt 0:00:40]} 65. Kxf4 {[%emt 0:00:00]} Kf7 {[%emt 0:00:09]} 66. Kf5 {
[%emt 0:00:00]} Ke8 {[%emt 0:00:08]} 67. Kf6 {[%emt 0:00:00]} 1-0

[Event "44th Chess Olympiad Women 2022"]
[Site "Chennai"]
[Date "2022.08.07"]
[Round "9.49"]
[White "Shih, Ching-An"]
[Black "Likando Namakau"]
[Result "1-0"]
[WhiteElo "1582"]
[BlackElo "1544"]
[Annotator "NA RC"]
[PlyCount "79"]
[EventDate "2022.??.??"]
[TimeControl "60"]

1. Nf3 {[%emt 0:00:07]} Nf6 {[%emt 0:00:22]} 2. d4 {[%emt 0:00:25]} e6 {
[%emt 0:00:29]} 3. g3 {[%emt 0:00:35]} d5 {[%emt 0:01:04]} 4. Bg2 {[%emt 0:00:
00]} Be7 {[%emt 0:00:34]} 5. O-O {[%emt 0:00:13]} O-O {[%emt 0:01:28]} 6. Nbd2
{[%emt 0:00:40]} c5 {[%emt 0:03:16]} 7. c3 {[%emt 0:00:15]} Nc6 {[%emt 0:01:00]
} 8. b3 {[%emt 0:03:51]} cxd4 {[%emt 0:01:28]} 9. cxd4 {[%emt 0:00:13]} Bd7 {
[%emt 0:00:19]} 10. Bb2 {[%emt 0:00:06]} Rc8 {[%emt 0:00:34]} 11. Ne5 {[%emt 0:
00:00]} Qb6 {[%emt 0:07:55]} 12. Nxd7 {[%emt 0:02:42]} Nxd7 {[%emt 0:00:23]}
13. Nf3 {[%emt 0:00:12]} Bf6 {[%emt 0:02:10]} 14. e3 {[%emt 0:00:35]} Rc7 {
[%emt 0:01:41]} 15. Ba3 {[%emt 0:01:30]} Rfc8 {[%emt 0:00:17]} 16. Bd6 {
[%emt 0:00:43]} Nb4 {[%emt 0:03:22]} 17. Bxc7 {[%emt 0:00:15]} Rxc7 {[%emt 0:
00:00]} 18. a3 {[%emt 0:03:30]} Nc6 {[%emt 0:01:09]} 19. b4 {[%emt 0:00:26]} a6
{[%emt 0:01:01]} 20. Rc1 {[%emt 0:02:08]} Rc8 {[%emt 0:03:58]} 21. Qd3 {
[%emt 0:02:57]} Rd8 {[%emt 0:01:01]} 22. Rfd1 {[%emt 0:04:12]} Be7 {[%emt 0:00:
00]} 23. h4 {[%emt 0:01:51]} h6 {[%emt 0:02:10]} 24. Qc2 {[%emt 0:02:36]} Qa7 {
[%emt 0:01:50]} 25. Qb3 {[%emt 0:03:30]} f5 {[%emt 0:06:35]} 26. Ne1 {[%emt 0:
00:00]} Qb6 {[%emt 0:07:05]} 27. Qc3 {[%emt 0:02:58]} Qa7 {[%emt 0:02:57]} 28.
Nd3 {[%emt 0:00:15]} Nb6 {[%emt 0:02:42]} 29. Nc5 {[%emt 0:02:24]} Kf7 {
[%emt 0:02:12]} 30. Nxb7 {[%emt 0:03:47]} Rc8 {[%emt 0:07:55]} 31. Nc5 {
[%emt 0:00:18]} Rc7 {[%emt 0:08:24]} 32. Qd3 {[%emt 0:02:26]} Nc4 {[%emt 0:00:
00]} 33. Bxd5 {[%emt 0:09:47]} exd5 {[%emt 0:06:06]} 34. Qxf5+ {[%emt 0:00:07]}
Ke8 {[%emt 0:02:23]} 35. Qh5+ {[%emt 0:01:00]} Kd8 {[%emt 0:04:23]} 36. Ne6+ {
[%emt 0:00:07]} Kd7 {[%emt 0:00:48]} 37. Nxc7 {[%emt 0:00:43]} Qxc7 {[%emt 0:
00:00]} 38. Qxd5+ {[%emt 0:00:09]} Nd6 {[%emt 0:00:16]} 39. Rc5 {[%emt 0:00:41]
} Qb8 {[%emt 0:03:37]} 40. Qxc6+ {[%emt 0:00:31]} 1-0

[Event "44th Chess Olympiad Women 2022"]
[Site "Chennai"]
[Date "2022.08.07"]
[Round "9.50"]
[White "Banda Natalie Katlo"]
[Black "Van Wyk, Keisha C"]
[Result "1-0"]
[WhiteElo "1688"]
[BlackElo "1237"]
[Annotator "NA"]
[PlyCount "95"]
[EventDate "2022.??.??"]
[TimeControl "60"]

1. d4 {[%emt 0:00:08]} Nf6 {[%emt 0:00:41]} 2. Bg5 {[%emt 0:00:44]} g6 {
[%emt 0:01:11]} 3. Bxf6 {[%emt 0:00:12]} exf6 {[%emt 0:00:53]} 4. e3 {[%emt 0:
00:00]} Bg7 {[%emt 0:01:03]} 5. Bd3 {[%emt 0:00:15]} O-O {[%emt 0:02:39]} 6. h4
{[%emt 0:00:25]} d6 {[%emt 0:01:21]} 7. h5 {[%emt 0:00:22]} Be6 {[%emt 0:02:07]
} 8. hxg6 {[%emt 0:00:32]} fxg6 {[%emt 0:03:33]} 9. Qf3 {[%emt 0:00:57]} Nc6 {
[%emt 0:02:53]} 10. Rxh7 {[%emt 0:11:30]} Ne7 {[%emt 0:13:34]} 11. Rh1 {
[%emt 0:00:29]} c6 {[%emt 0:02:30]} 12. Nh3 {[%emt 0:02:40]} Qa5+ {[%emt 0:00:
00]} 13. Nd2 {[%emt 0:01:20]} Qd5 {[%emt 0:04:59]} 14. Bc4 {[%emt 0:01:42]}
Qxc4 {[%emt 0:21:18]} 15. Nxc4 {[%emt 0:01:54]} Bxc4 {[%emt 0:00:15]} 16. Nf4 {
[%emt 0:00:55]} Kf7 {[%emt 0:03:22]} 17. b3 {[%emt 0:00:50]} Bd5 {[%emt 0:00:
00]} 18. Nxd5 {[%emt 0:02:21]} Nxd5 {[%emt 0:00:32]} 19. c4 {[%emt 0:00:16]}
Nb4 {[%emt 0:03:01]} 20. Kd2 {[%emt 0:00:08]} Rab8 {[%emt 0:01:08]} 21. a3 {
[%emt 0:00:31]} Na6 {[%emt 0:00:39]} 22. d5 {[%emt 0:01:13]} Nc5 {[%emt 0:00:
00]} 23. Rab1 {[%emt 0:00:29]} Rbc8 {[%emt 0:01:12]} 24. b4 {[%emt 0:01:09]}
Nd7 {[%emt 0:00:43]} 25. dxc6 {[%emt 0:00:48]} bxc6 {[%emt 0:01:52]} 26. b5 {
[%emt 0:02:20]} Ne5 {[%emt 0:00:45]} 27. Qe2 {[%emt 0:01:52]} cxb5 {[%emt 0:00:
00]} 28. Rxb5 {[%emt 0:00:56]} Nxc4+ {[%emt 0:01:05]} 29. Kd1 {[%emt 0:00:14]}
Rc7 {[%emt 0:01:27]} 30. Rh4 {[%emt 0:01:32]} Rfc8 {[%emt 0:00:43]} 31. Qa2 {
[%emt 0:01:04]} Kf8 {[%emt 0:00:45]} 32. Rb1 {[%emt 0:02:47]} f5 {[%emt 0:00:
00]} 33. Qb3 {[%emt 0:06:22]} d5 {[%emt 0:04:52]} 34. Qb4+ {[%emt 0:05:11]} Kg8
{[%emt 0:01:55]} 35. Rh1 {[%emt 0:04:23]} a5 {[%emt 0:01:02]} 36. Qb3 {[%emt 0:
00:00]} Bf8 {[%emt 0:02:57]} 37. Qc3 {[%emt 0:09:31]} Bg7 {[%emt 0:02:00]} 38.
Qb3 {[%emt 0:00:30]} Bf8 {[%emt 0:02:38]} 39. Rh4 {[%emt 0:00:43]} Be7 {
[%emt 0:00:58]} 40. Rd4 {[%emt 0:00:54]} Rd8 {[%emt 0:01:04]} 41. Ke2 {[%emt 0:
00:00]} Nxa3 {[%emt 0:04:05]} 42. Rxd5 {[%emt 0:00:00]} Rdc8 {[%emt 0:03:58]}
43. Rd8+ {[%emt 0:00:00]} Kg7 {[%emt 0:00:43]} 44. Qg8+ {[%emt 0:00:00]} Kf6 {
[%emt 0:00:12]} 45. Rxc8 {[%emt 0:00:00]} Rxc8 {[%emt 0:00:18]} 46. Rb6+ {
[%emt 0:00:00]} Kg5 {[%emt 0:01:15]} 47. Rxg6+ {[%emt 0:00:00]} Kh5 {[%emt 0:
00:00]} 48. Qh7# {[%emt 0:00:00]} 1-0

[Event "44th Chess Olympiad Women 2022"]
[Site "Chennai"]
[Date "2022.08.07"]
[Round "9.50"]
[White "Moshoboro Arona"]
[Black "Mentile, Lishen"]
[Result "0-1"]
[WhiteElo "1611"]
[BlackElo "1486"]
[Annotator "NA RC"]
[PlyCount "134"]
[EventDate "2022.??.??"]
[TimeControl "60"]

1. d4 {[%emt 0:00:15]} d5 {[%emt 0:00:13]} 2. Nf3 {[%emt 0:00:00]} Nf6 {
[%emt 0:00:45]} 3. e3 {[%emt 0:00:07]} e6 {[%emt 0:01:29]} 4. Bd3 {[%emt 0:00:
00]} Be7 {[%emt 0:00:52]} 5. Nbd2 {[%emt 0:00:36]} b6 {[%emt 0:01:47]} 6. b3 {
[%emt 0:00:57]} Bb7 {[%emt 0:04:13]} 7. Bb2 {[%emt 0:01:00]} Nbd7 {[%emt 0:00:
00]} 8. O-O {[%emt 0:00:20]} O-O {[%emt 0:00:13]} 9. Ne5 {[%emt 0:00:38]} Rc8 {
[%emt 0:04:49]} 10. f4 {[%emt 0:06:36]} c5 {[%emt 0:08:13]} 11. Qe2 {[%emt 0:
00:00]} Ne4 {[%emt 0:10:06]} 12. Nxd7 {[%emt 0:11:46]} Qxd7 {[%emt 0:01:23]}
13. Rad1 {[%emt 0:20:00]} cxd4 {[%emt 0:08:53]} 14. Nxe4 {[%emt 0:07:08]} dxe4
{[%emt 0:01:09]} 15. Bc4 {[%emt 0:03:52]} Qc6 {[%emt 0:06:22]} 16. Bxd4 {
[%emt 0:03:10]} Bc5 {[%emt 0:11:13]} 17. Bb5 {[%emt 0:01:07]} Qd5 {[%emt 0:00:
00]} 18. Bxg7 {[%emt 0:03:45]} Bxe3+ {[%emt 0:02:20]} 19. Qxe3 {[%emt 0:00:30]}
Qxb5 {[%emt 0:02:49]} 20. Bxf8 {[%emt 0:00:22]} Kxf8 {[%emt 0:02:08]} 21. c4 {
[%emt 0:01:47]} Qc6 {[%emt 0:00:49]} 22. Rd2 {[%emt 0:00:33]} Ke7 {[%emt 0:00:
00]} 23. Rfd1 {[%emt 0:00:28]} Kf6 {[%emt 0:04:30]} 24. Qh3 {[%emt 0:00:53]}
Qc5+ {[%emt 0:05:24]} 25. Kf1 {[%emt 0:04:59]} Qf5 {[%emt 0:01:36]} 26. Qh6+ {
[%emt 0:00:47]} Qg6 {[%emt 0:00:41]} 27. Qh4+ {[%emt 0:02:21]} Kg7 {[%emt 0:00:
00]} 28. Qg3 {[%emt 0:06:38]} Bc6 {[%emt 0:01:45]} 29. Qc3+ {[%emt 0:02:30]}
Kh6 {[%emt 0:00:18]} 30. Qe5 {[%emt 0:01:07]} Rg8 {[%emt 0:00:54]} 31. g3 {
[%emt 0:00:51]} Qg4 {[%emt 0:00:51]} 32. Qf6+ {[%emt 0:02:07]} Rg6 {[%emt 0:00:
00]} 33. Qxf7 {[%emt 0:02:55]} e3 {[%emt 0:01:17]} 34. Qf8+ {[%emt 0:00:24]}
Kh5 {[%emt 0:00:11]} 35. Qd6 {[%emt 0:02:16]} Qf3+ {[%emt 0:00:27]} 36. Ke1 {
[%emt 0:00:15]} Qh1+ {[%emt 0:00:36]} 37. Ke2 {[%emt 0:00:19]} Qf3+ {[%emt 0:
00:00]} 38. Kd3 {[%emt 0:00:52]} Be4+ {[%emt 0:00:53]} 39. Kd4 {[%emt 0:00:48]}
exd2 {[%emt 0:00:10]} 40. Qe5+ {[%emt 0:00:31]} Bf5 {[%emt 0:00:43]} 41. Rxd2 {
[%emt 0:30:21]} Qf1 {[%emt 0:31:24]} 42. Qc7 {[%emt 0:00:00]} Qg1+ {[%emt 0:00:
00]} 43. Kc3 {[%emt 0:00:00]} Qc1+ {[%emt 0:00:00]} 44. Kb4 {[%emt 0:00:00]}
Qxd2+ {[%emt 0:00:00]} 45. Ka3 {[%emt 0:00:00]} Qa5+ {[%emt 0:00:00]} 46. Kb2 {
[%emt 0:00:00]} h6 {[%emt 0:00:00]} 47. Qd8 {[%emt 0:00:00]} Rg4 {[%emt 0:00:
00]} 48. Qe8+ {[%emt 0:00:00]} Bg6 {[%emt 0:00:00]} 49. Qxe6 {[%emt 0:00:00]}
Qf5 {[%emt 0:00:00]} 50. Qe7 {[%emt 0:00:00]} Qc2+ {[%emt 0:00:00]} 51. Ka3 {
[%emt 0:00:00]} Qc1+ {[%emt 0:00:00]} 52. Ka4 {[%emt 0:00:00]} Qc2 {[%emt 0:00:
00]} 53. Ka3 {[%emt 0:00:00]} Qf5 {[%emt 0:00:00]} 54. Kb2 {[%emt 0:00:00]} Qa5
{[%emt 0:00:00]} 55. Qe2 {[%emt 0:00:00]} Qc5 {[%emt 0:00:49]} 56. h3 {[%emt 0:
00:00]} Qd4+ {[%emt 0:00:21]} 57. Ka3 {[%emt 0:00:00]} Qd6+ {[%emt 0:00:20]}
58. Ka4 {[%emt 0:00:00]} Qc6+ {[%emt 0:00:56]} 59. Ka3 {[%emt 0:00:00]} Qd6+ {
[%emt 0:00:06]} 60. Kb2 {[%emt 0:00:00]} Qd4+ {[%emt 0:00:12]} 61. Ka3 {
[%emt 0:00:00]} Qd6+ {[%emt 0:00:13]} 62. Ka4 {[%emt 0:00:00]} Qc6+ {[%emt 0:
00:00]} 63. Kb4 {[%emt 0:00:00]} a5+ {[%emt 0:01:43]} 64. Kc3 {[%emt 0:00:00]}
Qf6+ {[%emt 0:00:11]} 65. Qe5+ {[%emt 0:00:22]} Qxe5+ {[%emt 0:00:15]} 66. fxe5
{[%emt 0:00:12]} Rxg3+ {[%emt 0:00:03]} 67. Kd4 {[%emt 0:00:22]} Rd3# {[%emt 0:
00:00]} 0-1

[Event "44th Chess Olympiad Women 2022"]
[Site "Chennai"]
[Date "2022.08.07"]
[Round "9.50"]
[White "Nepando, Jolly"]
[Black "Marape, Naledi"]
[Result "0-1"]
[WhiteElo "1389"]
[BlackElo "1714"]
[Annotator "NA RC"]
[PlyCount "58"]
[EventDate "2022.??.??"]
[TimeControl "60"]

1. e4 {[%emt 0:00:17]} c5 {[%emt 0:00:05]} 2. Nf3 {[%emt 0:00:22]} d6 {[%emt 0:
00:00]} 3. c3 {[%emt 0:00:43]} Nf6 {[%emt 0:00:25]} 4. Be2 {[%emt 0:01:21]} g6
{[%emt 0:01:11]} 5. O-O {[%emt 0:01:20]} Nc6 {[%emt 0:00:47]} 6. d4 {[%emt 0:
00:00]} cxd4 {[%emt 0:09:26]} 7. cxd4 {[%emt 0:00:58]} Bg7 {[%emt 0:01:15]} 8.
d5 {[%emt 0:06:41]} Nb8 {[%emt 0:01:51]} 9. Bb5+ {[%emt 0:02:10]} Bd7 {[%emt 0:
00:00]} 10. Bxd7+ {[%emt 0:00:44]} Nbxd7 {[%emt 0:00:18]} 11. Re1 {[%emt 0:00:
00]} O-O {[%emt 0:02:31]} 12. Nc3 {[%emt 0:06:17]} a6 {[%emt 0:01:16]} 13. Bg5
{[%emt 0:04:25]} b5 {[%emt 0:01:38]} 14. a3 {[%emt 0:03:02]} Nb6 {[%emt 0:00:
00]} 15. Nd2 {[%emt 0:08:57]} Rc8 {[%emt 0:00:28]} 16. Rc1 {[%emt 0:04:54]} Nc4
{[%emt 0:01:20]} 17. Nxc4 {[%emt 0:01:15]} Rxc4 {[%emt 0:00:30]} 18. b3 {
[%emt 0:03:39]} Rc7 {[%emt 0:01:47]} 19. Nb1 {[%emt 0:04:56]} h6 {[%emt 0:00:
00]} 20. Bd2 {[%emt 0:02:24]} Qb8 {[%emt 0:01:04]} 21. Qe2 {[%emt 0:02:59]}
Rfc8 {[%emt 0:00:37]} 22. Rxc7 {[%emt 0:02:05]} Qxc7 {[%emt 0:00:34]} 23. Nc3 {
[%emt 0:04:00]} Qc5 {[%emt 0:04:12]} 24. Nb1 {[%emt 0:04:24]} Qc2 {[%emt 0:00:
00]} 25. Qd1 {[%emt 0:03:24]} Qa2 {[%emt 0:02:24]} 26. Bc3 {[%emt 0:02:54]}
Nxe4 {[%emt 0:22:49]} 27. Rxe4 {[%emt 0:06:04]} Bxc3 {[%emt 0:00:27]} 28. Re2 {
[%emt 0:12:32]} Bb2 {[%emt 0:00:51]} 29. f4 {[%emt 0:02:37]} Qa1 {[%emt 0:00:
00]} 0-1